bitfinex/quotes_ETHUSD_20241122
["timestamp","ask_amount","ask_price","bid_price","bid_amount"]
[1732234990097,2.68876,3349.3,3348.9,0.297]
[1732234990791,2.98567,3349.4,3348.9,0.297]
[1732234990968,2.98573,3349.3,3348.9,0.32685687]
[1732234991172,2.98573,3349.3,3348.9,0.72086266]
[1732234991761,2.98573,3349.3,3348.9,0.69100579]
[1732234992474,5.69528363,3350.1,3349.3,0.297]
[1732234992806,5.69528363,3350.1,3348.4,0.01]
[1732234992807,3.75968,3350.7,3350.0,0.297]
[1732234992964,2.98433,3350.9,3350.2,3.28188]
[1732234993600,0.02986464,3350.8,3350.2,0.297]
[1732234993764,2.9848,3350.3,3350.2,0.297]
[1732234994094,1.10349764,3350.8,3349.8,0.297]
[1732234994095,2.9847,3350.5,3349.8,0.297]
[1732234994304,2.9847,3350.5,3349.8,3.28224]
[1732234994835,2.98436,3350.8,3350.0,0.297]
[1732234994971,2.98382,3351.5,3350.4,3.28171]
[1732234994972,2.98401,3351.2,3350.4,3.28171]
[1732234995167,2.98401,3351.2,3350.1,0.02984382]
[1732234995168,2.98323,3352.1,3350.1,0.02984382]
[1732234995169,3.75866,3351.9,3350.8,0.297]
[1732234995372,2.98357,3351.7,3351.1,0.297]
[1732234995596,2.98366,3351.6,3351.1,0.297]
[1732234995985,0.64689136,3351.8,3351.1,0.297]
[1732234996468,2.98374,3351.5,3350.9,0.297]
[1732234996668,2.98356,3351.7,3350.9,0.297]
[1732234996669,2.98418,3351.0,3350.9,0.297]
[1732234997361,2.98467,3350.5,3349.9,0.297]
[1732234997562,2.98467,3350.5,3349.9,3.28216]
[1732234997768,2.98481,3350.3,3349.9,0.297]
[1732234997964,2.98482,3350.3,3349.9,0.297]
[1732234998216,0.298467,3350.5,3349.9,0.297]
[1732234998398,2.98488,3350.3,3349.6,0.297]
[1732234998698,2.985,3350.1,3349.6,0.32685062]
[1732234999002,2.688,3350.1,3349.6,0.297]
[1732234999705,2.98481,3350.3,3349.7,0.297]
[1732235000003,2.98479,3350.4,3349.8,0.297]
[1732235000303,2.98443,3350.8,3350.2,0.297]
[1732235000604,3.48545363,3351.2,3350.2,0.297]
[1732235000802,2.98452,3350.7,3350.2,0.297]
[1732235001168,2.98478,3350.4,3350.2,0.297]
[1732235001483,2.98478,3350.4,3349.8,0.02984521]
[1732235001484,2.98478,3350.4,3349.8,0.297]
[1732235001677,2.98455,3350.6,3349.8,0.297]
[1732235001907,2.98438,3350.8,3350.2,0.297]
[1732235002070,2.98438,3350.8,3350.2,0.32684573]
[1732235002393,2.98438,3350.8,3350.2,3.28188]
[1732235002700,2.98459,3350.6,3350.2,0.297]
[1732235002901,2.9844,3350.8,3350.2,0.297]
[1732235003108,2.98445,3350.7,3350.2,0.297]
[1732235003706,0.03056464,3350.8,3350.2,0.297]
[1732235003907,2.98478,3350.4,3349.8,0.297]
[1732235004278,2.98488,3350.3,3349.8,0.297]
[1732235004477,2.98507,3350.0,3349.8,0.297]
[1732235004885,2.98507,3350.0,3349.3,0.297]
[1732235005211,3.01546464,3350.2,3349.3,0.297]
[1732235005212,2.98516,3349.9,3349.3,0.62825572]
[1732235005788,2.98516,3349.9,3349.3,3.61393572]
[1732235006328,2.985,3350.1,3349.5,0.297]
[1732235007013,2.98531,3349.8,3349.5,0.297]
[1732235007526,2.98531,3349.8,3349.6,0.297]
[1732235008021,2.98534,3349.7,3349.6,0.297]
[1732235008422,2.98534,3349.7,3349.2,0.297]
[1732235008589,3.0,3349.9,3349.2,0.297]
[1732235008786,2.98561,3349.4,3349.2,0.297]
[1732235008989,2.98569,3349.3,3349.2,0.297]
[1732235009643,2.98569,3349.3,3348.8,0.297]
[1732235009800,2.98544,3349.6,3349.0,0.297]
[1732235009801,2.98553,3349.5,3349.0,0.297]
[1732235009997,2.98562,3349.4,3349.0,0.32685527]
[1732235010203,2.98587,3349.1,3349.0,0.297]
[1732235010800,2.98606,3348.9,3348.2,0.32686091]
[1732235011008,2.98606,3348.9,3348.2,0.92705309]
[1732235011411,2.98587,3349.1,3348.2,0.92705309]
[1732235011613,2.98571,3349.3,3348.8,0.297]
[1732235011819,2.98557,3349.5,3348.9,0.02985691]
[1732235012132,2.98557,3349.5,3349.0,0.297]
[1732235012335,3.7762,3349.9,3349.2,3.28276]
[1732235012336,3.0,3349.9,3349.2,3.28276]
[1732235012628,2.71025363,3350.0,3349.4,0.297]
[1732235013032,2.98526,3349.8,3349.4,0.297]
[1732235013241,0.03056464,3349.9,3349.4,0.297]
[1732235013412,2.98552,3349.5,3349.4,0.297]
[1732235013608,2.98538,3349.7,3348.9,3.28298]
[1732235013813,2.98526,3349.8,3349.1,0.297]
[1732235014001,2.98526,3349.8,3349.2,0.02985423]
[1732235014204,2.98526,3349.8,3349.3,0.297]
[1732235015338,2.98526,3349.8,3349.2,0.32685423]
[1732235015636,2.98517,3349.9,3349.4,0.297]
[1732235016046,3.7762,3350.3,3349.4,0.297]
[1732235016337,2.98516,3350.0,3349.4,0.297]
[1732235016721,3.0,3350.0,3349.4,3.28258]
[1732235016906,3.0,3350.0,3349.6,0.297]
[1732235017246,2.985,3350.1,3349.6,0.297]
[1732235018337,2.98509,3350.0,3349.7,0.02984969]
[1732235018557,2.98526,3349.8,3349.6,0.297]
[1732235018766,2.98526,3349.8,3349.4,0.297]
[1732235019040,3.0,3350.3,3349.3,0.33057142]
[1732235019242,2.98521,3349.9,3349.3,0.36042261]
[1732235019646,2.98521,3349.9,3349.3,0.33057142]
[1732235020028,2.985,3350.1,3349.4,0.297]
[1732235020328,2.98536,3349.7,3349.4,0.297]
[1732235020568,2.98517,3349.9,3349.1,0.297]
[1732235020876,2.98517,3349.9,3349.4,0.297]
[1732235021238,2.985,3350.1,3349.4,0.297]
[1732235021441,2.985,3350.1,3349.6,0.297]
[1732235021759,2.9851,3350.0,3349.8,0.297]
[1732235022281,3.0,3350.2,3349.8,0.297]
[1732235022470,2.98504,3350.1,3349.8,0.297]
[1732235022638,2.98504,3350.1,3349.9,0.297]
[1732235022840,2.98507,3350.0,3349.9,0.297]
[1732235023545,2.98507,3350.0,3349.4,0.297]
[1732235023885,2.98535,3349.7,3349.4,0.297]
[1732235024539,2.98535,3349.7,3349.0,2.98595]
[1732235024540,2.98537,3349.7,3349.1,3.28281]
[1732235024952,2.98537,3349.7,3349.0,3.01580236]
[1732235024953,2.98525,3349.8,3349.3,0.297]
[1732235025382,2.98519,3349.9,3349.3,3.28269]
[1732235025585,2.98531,3349.8,3349.3,0.297]
[1732235026084,2.98533,3349.8,3349.4,0.297]
[1732235026642,2.98552,3349.5,3349.4,0.297]
[1732235027066,2.98552,3349.5,3348.9,3.28297]
[1732235027380,2.9854,3349.7,3349.1,0.297]
[1732235027561,2.98551,3349.6,3349.1,0.297]
[1732235028903,2.98528,3349.8,3349.1,0.297]
[1732235029201,0.65031824,3349.8,3348.9,0.297]
[1732235029493,2.98577,3349.3,3348.9,0.297]
[1732235029855,2.98579,3349.2,3348.9,0.297]
[1732235030268,2.98579,3349.2,3348.8,0.297]
[1732235031265,2.98596,3349.0,3348.9,0.297]
[1732235031812,3.48733773,3349.3,3348.1,3.31330962]
[1732235031813,2.9862,3348.8,3348.1,3.31330962]
[1732235032290,2.98623,3348.7,3348.1,3.31330962]
[1732235032456,2.98623,3348.7,3348.1,3.64464058]
[1732235033076,2.98623,3348.7,3348.1,3.61508096]
[1732235033281,5.97218,3348.9,3348.1,3.61508096]
[1732235033524,2.98621,3348.8,3348.2,0.02956127]
[1732235033891,3.48733773,3349.3,3348.3,0.297]
[1732235034223,2.98539,3349.7,3348.9,0.297]
[1732235034420,2.98539,3349.7,3349.0,0.02955564]
[1732235034920,2.98539,3349.7,3349.1,0.297]
[1732235035224,2.70931072,3349.8,3349.1,3.91268256]
[1732235035384,2.98535,3349.7,3349.3,0.297]
[1732235035782,2.98531,3349.8,3349.3,0.297]
[1732235036094,2.98506,3350.1,3349.4,0.02955304]
[1732235036301,2.98516,3349.9,3349.4,0.02955304]
[1732235036514,2.98516,3349.9,3349.3,3.28268]
[1732235037107,2.98518,3349.9,3349.2,0.297]
[1732235037383,2.9856,3349.5,3349.2,0.297]
[1732235037584,2.98534,3349.7,3349.2,0.297]
[1732235037894,2.98555,3349.5,3349.2,0.297]
[1732235038134,2.98564,3349.4,3348.8,0.297]
[1732235038293,2.98564,3349.4,3348.8,0.923961]
[1732235038494,2.9855,3349.6,3348.8,0.923961]
[1732235038796,2.98566,3349.4,3349.0,0.297]
[1732235039593,2.98566,3349.4,3348.9,0.32685681]
[1732235039820,2.98543,3349.6,3348.9,0.297]
[1732235040026,2.98569,3349.3,3348.9,0.297]
[1732235040231,2.98552,3349.5,3348.9,0.297]
[1732235040400,2.98563,3349.4,3348.9,0.297]
[1732235040601,2.98571,3349.3,3349.0,0.297]
[1732235040913,2.98563,3349.4,3349.0,0.297]
[1732235041115,2.98546,3349.6,3349.0,0.297]
[1732235041330,2.98534,3349.7,3349.1,0.02985685]
[1732235041537,2.98555,3349.5,3349.0,0.62531]
[1732235041831,2.98555,3349.5,3348.9,0.297]
[1732235042031,2.98561,3349.4,3348.9,0.297]
[1732235042547,2.98571,3349.3,3348.9,0.297]
[1732235042835,2.98587,3349.1,3349.0,0.297]
[1732235042997,3.53587,3349.1,3349.0,0.297]
[1732235043425,2.98627,3348.7,3348.1,0.297]
[1732235043658,2.98627,3348.7,3348.1,0.63180213]
[1732235043832,2.98627,3348.7,3348.1,3.61856213]
[1732235044033,2.98607,3348.9,3347.1,2.99765]
[1732235044034,2.98607,3348.9,3348.2,3.28367]
[1732235044274,3.53589,3349.1,3348.5,0.297]
[1732235044560,2.98597,3349.0,3348.5,0.297]
[1732235044747,2.98612,3348.9,3348.5,0.297]
[1732235045260,0.8029,3348.5,3347.9,0.297]
[1732235045460,3.78931,3348.5,3347.9,0.297]
[1732235045673,5.69616072,3348.0,3347.9,0.297]
[1732235046158,2.98685,3348.0,3347.9,0.297]
[1732235046369,2.98704,3347.8,3347.2,0.32686986]
[1732235046536,2.98704,3347.8,3347.2,0.92723399]
[1732235046741,2.98685,3348.0,3347.2,3.91479399]
[1732235047044,2.98685,3348.0,3347.4,0.297]
[1732235047267,2.98669,3348.2,3347.7,0.297]
[1732235047758,2.98683,3348.1,3347.7,0.297]
[1732235048059,2.9866,3348.3,3347.7,0.297]
[1732235048288,2.9866,3348.3,3347.8,0.297]
[1732235048461,2.98677,3348.1,3347.8,0.297]
[1732235048627,2.98671,3348.2,3347.8,0.297]
[1732235048628,2.98687,3348.0,3347.8,0.297]
[1732235048960,2.98676,3348.1,3347.8,0.297]
[1732235049167,2.98694,3347.9,3347.8,0.297]
[1732235049324,2.98702,3347.9,3347.3,0.297]
[1732235049525,2.98704,3347.8,3347.3,0.297]
[1732235050260,2.70931072,3347.6,3346.7,0.297]
[1732235050467,0.03086464,3347.5,3346.7,0.297]
[1732235050678,0.55,3347.5,3346.8,0.02987594]
[1732235050843,2.98723,3347.6,3346.9,0.297]
[1732235051035,2.98723,3347.6,3346.8,0.37635648]
[1732235051036,2.98687,3348.0,3347.1,0.297]
[1732235051274,2.98687,3348.0,3346.6,0.1498895]
[1732235051275,2.9866,3348.3,3347.7,0.297]
[1732235051463,2.98703,3347.8,3346.7,0.297]
[1732235051780,2.98753,3347.3,3346.7,0.297]
[1732235052469,2.98757,3347.2,3346.7,0.297]
[1732235052677,2.98733,3347.5,3346.7,0.297]
[1732235052833,2.98751,3347.3,3346.7,3.31487429]
[1732235053036,2.98733,3347.5,3346.7,3.285]
[1732235053573,2.98715,3347.7,3347.0,0.297]
[1732235053879,2.98722,3347.6,3347.0,0.297]
[1732235054245,2.98713,3347.7,3347.0,2.98593]
[1732235054450,2.98739,3347.4,3347.0,0.297]
[1732235054652,0.65288107,3347.8,3347.0,0.297]
[1732235054653,2.98724,3347.6,3347.0,0.297]
[1732235055347,2.98724,3347.6,3347.1,0.297]
[1732235056887,2.98705,3347.8,3347.2,0.297]
[1732235057043,2.98684,3348.1,3347.4,0.297]
[1732235057240,2.98684,3348.1,3347.4,0.32686762]
[1732235057476,2.98698,3347.9,3347.4,0.297]
[1732235057849,2.98718,3347.7,3347.4,0.297]
[1732235058051,2.98698,3347.9,3347.2,0.297]
[1732235058261,2.98704,3347.8,3347.2,0.297]
[1732235058778,3.3154154,3348.0,3347.5,0.297]
[1732235058961,5.69608072,3348.1,3347.3,0.297]
[1732235059150,2.98697,3347.9,3347.3,0.297]
[1732235059473,2.98724,3347.6,3347.3,0.297]
[1732235060144,3.80644,3347.9,3347.3,0.297]
[1732235060145,2.98703,3347.8,3347.3,0.297]
[1732235061045,2.98693,3348.0,3347.3,0.297]
[1732235061258,2.98698,3347.9,3347.3,0.86733139]
[1732235061472,2.98698,3347.9,3347.3,0.297]
[1732235061986,2.98698,3347.9,3347.2,2.6888]
[1732235061987,5.69609072,3348.1,3347.5,0.297]
[1732235062146,2.98686,3348.0,3347.5,0.297]
[1732235063055,2.98686,3348.0,3347.3,2.68872]
[1732235063056,2.98686,3348.0,3347.4,0.297]
[1732235063275,2.98715,3347.7,3347.4,0.297]
[1732235063787,7.11337072,3347.7,3347.4,0.297]
[1732235063971,4.12622072,3347.7,3346.9,0.297]
[1732235064147,2.98728,3347.6,3346.9,0.297]
[1732235064476,2.98737,3347.5,3346.9,0.297]
[1732235064978,2.98737,3347.5,3346.9,2.98603]
[1732235065150,2.98737,3347.5,3346.9,3.57139139]
[1732235065865,2.98754,3347.3,3347.0,0.297]
[1732235066878,2.98732,3347.5,3346.8,0.297]
[1732235067039,2.98757,3347.2,3346.8,0.297]
[1732235067954,2.9874,3347.4,3346.8,0.297]
[1732235068198,3.52881072,3347.7,3346.9,0.297]
[1732235068353,5.69647072,3347.7,3346.9,0.297]
[1732235068675,2.98691,3348.0,3347.2,0.297]
[1732235068875,3.0,3348.0,3347.4,0.297]
[1732235069242,2.70931072,3348.1,3347.4,0.297]
[1732235069462,2.98661,3348.3,3347.7,0.297]
[1732235069659,3.53751072,3348.5,3347.7,0.297]
[1732235069859,3.53751072,3348.5,3347.4,0.02986801]
[1732235069860,2.70931072,3348.5,3348.2,0.297]
[1732235070292,2.70931072,3348.5,3346.9,0.01]
[1732235070293,2.70931072,3348.5,3348.4,0.297]
[1732235070599,2.98557,3349.5,3348.6,2.98463]
[1732235070600,2.70931072,3349.3,3348.6,2.98463]
[1732235070769,2.70931072,3349.3,3349.0,2.98431]
[1732235070969,2.98535,3349.7,3349.0,0.297]
[1732235070970,5.69466072,3349.7,3349.0,0.297]
[1732235071172,2.70931072,3349.7,3349.2,2.98419]
[1732235071759,2.70931072,3349.7,3349.2,0.297]
[1732235071760,3.27876779,3349.7,3349.2,0.297]
[1732235072003,2.98552,3349.5,3349.2,0.297]
[1732235072163,2.98565,3349.4,3348.9,0.297]
[1732235072559,0.60483918,3349.6,3348.9,0.297]
[1732235072560,3.59031918,3349.6,3348.9,0.297]
[1732235072982,0.60483918,3349.6,3349.1,0.297]
[1732235073184,2.98515,3350.0,3349.4,0.297]
[1732235073185,5.69446072,3350.0,3349.4,0.297]
[1732235073499,2.70931072,3350.0,3349.6,0.297]
[1732235073808,2.98586,3349.2,3348.4,2.68777]
[1732235074100,2.98568,3349.4,3348.1,0.02985996]
[1732235074300,2.98568,3349.4,3348.6,2.68761]
[1732235074603,2.98543,3349.6,3348.8,2.6875]
[1732235074780,2.98543,3349.6,3348.9,2.68744]
[1732235074981,2.98554,3349.5,3348.6,2.71746703]
[1732235075198,2.98554,3349.5,3348.8,2.68746]
[1732235075662,2.98561,3349.4,3348.7,2.68759]
[1732235075864,3.4711469,3349.4,3348.7,2.68759]
[1732235076707,0.4855369,3349.4,3348.8,2.68745]
[1732235077022,0.4855369,3349.4,3348.5,0.02985723]
[1732235077023,1.23180089,3349.6,3348.9,2.68743]
[1732235077322,2.98551,3349.6,3348.9,2.68743]
[1732235077615,2.98552,3349.5,3348.5,2.98475]
[1732235077783,2.98552,3349.5,3348.8,2.68751]
[1732235078121,2.98552,3349.5,3348.5,0.32685688]
[1732235078122,3.85352907,3349.5,3348.5,0.32685688]
[1732235078277,3.85352907,3349.5,3348.7,2.68759]
[1732235079386,2.98562,3349.4,3348.7,2.68759]
[1732235080917,0.86800907,3349.5,3348.7,2.68759]
[1732235081127,3.81363,3349.6,3348.9,2.68744]
[1732235081512,3.81363,3349.6,3348.7,2.68754]
[1732235081881,2.98568,3349.4,3348.7,2.68754]
[1732235082086,0.03346464,3349.4,3348.5,0.297]
[1732235082316,2.98614,3348.9,3348.1,2.68807]
[1732235082521,2.98616,3348.8,3348.1,2.68807]
[1732235082699,2.98623,3348.7,3348.1,2.98597]
[1732235083420,2.98623,3348.7,3348.1,0.2979]
[1732235083622,0.7752,3348.9,3348.1,0.2979]
[1732235083823,0.7752,3348.9,3347.9,0.19750608]
[1732235083824,2.98666,3348.3,3347.9,0.19750608]
[1732235084190,0.55,3348.8,3347.9,0.19750608]
[1732235084411,3.7752,3348.9,3347.9,2.83567608]
[1732235084620,3.76128,3348.9,3348.0,0.02986561]
[1732235084924,2.98634,3348.6,3348.0,0.06404144]
[1732235085131,2.98654,3348.4,3348.0,0.06404144]
[1732235085399,3.362474,3348.6,3348.0,0.06404144]
[1732235085618,2.98632,3348.6,3348.0,0.06404144]
[1732235085824,2.98641,3348.5,3348.0,0.06404144]
[1732235086027,2.98641,3348.5,3347.9,0.06404144]
[1732235086208,2.98623,3348.7,3347.9,3.29932616]
[1732235086536,2.98635,3348.6,3347.9,0.61110616]
[1732235086832,2.98652,3348.4,3347.9,0.06404144]
[1732235087038,2.98652,3348.4,3348.0,0.06404144]
[1732235087531,2.98661,3348.3,3348.0,0.06404144]
[1732235087900,2.98661,3348.3,3347.6,0.06404144]
[1732235088101,2.98661,3348.3,3347.6,2.75252144]
[1732235088342,2.98661,3348.3,3347.8,0.06404144]
[1732235088493,2.98633,3348.6,3347.8,0.06404144]
[1732235088700,0.55,3348.8,3348.0,0.06404144]
[1732235088935,2.9865,3348.5,3348.0,0.33926858]
[1732235089093,2.9865,3348.5,3348.0,0.06404144]
[1732235089452,2.70931072,3348.6,3348.0,0.06404144]
[1732235089612,2.98651,3348.4,3348.0,0.06404144]
[1732235089802,2.98651,3348.4,3347.8,0.06404144]
[1732235090754,2.98651,3348.4,3347.9,0.06404144]
[1732235091038,2.98581,3349.2,3348.4,0.06404144]
[1732235091235,2.98631,3348.7,3348.4,0.06404144]
[1732235091827,2.70931072,3349.1,3348.4,0.06404144]
[1732235092046,2.98624,3348.7,3348.5,0.06404144]
[1732235092238,2.98609,3348.9,3348.5,0.06404144]
[1732235092405,2.98622,3348.8,3348.5,0.06404144]
[1732235093013,2.98622,3348.8,3348.1,2.68806]
[1732235093014,2.98622,3348.8,3348.2,0.06404144]
[1732235093405,2.9863,3348.7,3348.2,0.06404144]
[1732235094234,2.9863,3348.7,3348.0,0.06404144]
[1732235094539,2.9863,3348.7,3348.2,0.06404144]
[1732235094698,0.7752,3348.8,3348.2,0.06404144]
[1732235094898,2.98605,3348.9,3348.2,2.75204144]
[1732235095117,3.0,3349.0,3348.5,0.06404144]
[1732235095317,5.98604,3349.0,3348.5,0.06404144]
[1732235096332,2.70931072,3349.1,3348.5,0.06404144]
[1732235096680,2.70931072,3349.1,3348.5,2.75180144]
[1732235097035,5.69519072,3349.1,3348.5,2.75180144]
[1732235098533,0.3515329,3350.4,3348.5,0.60801258]
[1732235098739,2.98537,3349.7,3349.1,0.06404144]
[1732235099037,2.98527,3349.8,3349.3,0.06404144]
[1732235099244,2.70931072,3350.1,3349.3,0.06404144]
[1732235099432,2.98533,3349.8,3349.3,0.06404144]
[1732235099849,2.98535,3349.7,3349.3,0.06404144]
[1732235100044,2.98531,3349.8,3349.4,0.06404144]
[1732235100560,2.98542,3349.7,3349.4,0.06404144]
[1732235100760,2.98552,3349.5,3349.4,0.06404144]
[1732235100985,2.98552,3349.5,3348.6,0.06404144]
[1732235100986,2.98591,3349.1,3348.6,0.06404144]
[1732235101268,2.98602,3349.0,3348.6,0.06404144]
[1732235101469,2.70931072,3349.6,3348.6,0.06404144]
[1732235101678,2.98596,3349.1,3348.9,0.06404144]
[1732235101831,2.98596,3349.0,3348.9,0.06404144]
[1732235102038,0.7799,3349.4,3348.9,0.06404144]
[1732235102346,2.98596,3349.0,3348.9,0.06404144]
[1732235103701,2.68776,3349.2,3348.4,0.06404144]
[1732235103870,2.98589,3349.1,3348.6,0.06404144]
[1732235104076,2.98589,3349.1,3348.5,2.68772]
[1732235104280,2.98572,3349.3,3348.7,2.68759]
[1732235104790,5.98552,3349.5,3349.0,0.2979]
[1732235104987,2.98552,3349.5,3349.2,0.2979]
[1732235105569,2.98567,3349.4,3349.2,0.2979]
[1732235105769,2.98543,3349.6,3349.2,0.2979]
[1732235106066,2.98554,3349.5,3349.0,0.2979]
[1732235106271,2.98516,3349.9,3349.0,0.2979]
[1732235106574,2.98525,3349.8,3349.0,0.2979]
[1732235106774,2.98552,3349.5,3349.0,0.2979]
[1732235107210,2.98552,3349.5,3348.8,0.32775573]
[1732235107390,2.98567,3349.4,3348.8,3.34106534]
[1732235107595,2.98537,3349.7,3349.0,0.2979]
[1732235107829,2.98555,3349.5,3349.0,0.2979]
[1732235108190,2.98584,3349.2,3349.0,0.2979]
[1732235108427,2.98571,3349.3,3349.0,0.2979]
[1732235108731,2.98611,3348.9,3348.7,0.2979]
[1732235108915,2.9859,3349.1,3348.7,0.2979]
[1732235108916,2.98598,3349.0,3348.7,0.2979]
[1732235109098,2.98605,3348.9,3348.7,0.2979]
[1732235109297,2.9859,3349.1,3348.7,0.2979]
[1732235109511,2.98604,3349.0,3348.5,0.2979]
[1732235109725,2.98594,3349.1,3348.5,0.2979]
[1732235109918,2.98593,3349.1,3348.5,0.2979]
[1732235110222,2.98593,3349.1,3348.5,0.86825397]
[1732235110593,2.986,3349.0,3348.7,0.2979]
[1732235110791,2.98593,3349.1,3348.7,0.2979]
[1732235111700,2.98571,3349.3,3348.8,0.2979]
[1732235112029,2.98579,3349.2,3348.8,0.6832904]
[1732235112194,2.98569,3349.4,3348.8,3.3708104]
[1732235112392,2.98552,3349.5,3349.0,0.2979]
[1732235112742,2.98563,3349.4,3349.0,0.2979]
[1732235113036,2.98549,3349.6,3349.0,2.98526]
[1732235113233,2.98561,3349.4,3349.2,0.2979]
[1732235113395,2.98569,3349.3,3349.2,0.2979]
[1732235113599,2.98555,3349.5,3349.2,0.2979]
[1732235114229,2.98555,3349.5,3349.3,0.2979]
[1732235115202,2.98555,3349.5,3349.4,0.2979]
[1732235116215,0.55,3349.8,3348.7,0.2979]
[1732235116417,2.98595,3349.1,3348.7,0.76027371]
[1732235116636,0.55,3349.8,3348.5,0.2979]
[1732235116795,2.98625,3348.7,3348.5,0.2979]
[1732235117197,2.98625,3348.7,3348.6,0.2979]
[1732235118373,2.98625,3348.7,3348.2,0.2979]
[1732235118539,2.98625,3348.7,3348.4,0.2979]
[1732235119098,2.98633,3348.6,3348.4,0.2979]
[1732235119292,2.98637,3348.6,3348.4,0.2979]
[1732235119496,2.98616,3348.8,3348.5,0.2979]
[1732235119715,2.98606,3348.9,3348.5,0.2979]
[1732235119921,2.70931072,3350.0,3348.7,0.2979]
[1732235119922,2.98563,3349.4,3348.7,0.2979]
[1732235120135,2.98588,3349.1,3348.7,0.2979]
[1732235120295,2.98602,3349.0,3348.7,0.2979]
[1732235120704,3.0,3349.5,3348.7,0.2979]
[1732235120705,0.83732286,3349.2,3348.7,0.2979]
[1732235121005,5.97192,3349.1,3348.5,0.2979]
[1732235121206,2.98571,3349.3,3348.8,0.2979]
[1732235121398,2.9857,3349.3,3348.8,0.2979]
[1732235121594,2.9857,3349.3,3348.8,0.86774415]
[1732235121793,2.98563,3349.4,3348.8,3.55524415]
[1732235122602,2.98543,3349.6,3348.8,3.55524415]
[1732235122916,2.98561,3349.4,3349.0,0.2979]
[1732235123844,2.98557,3349.5,3349.1,0.02524147]
[1732235124047,2.98557,3349.5,3348.9,0.2979]
[1732235124341,2.98596,3349.0,3348.9,0.2979]
[1732235125505,3.77786,3349.0,3348.9,0.2979]
[1732235125908,2.98637,3348.6,3348.0,0.2979]
[1732235126113,2.98616,3348.8,3348.0,3.28721353]
[1732235126336,2.98616,3348.8,3348.1,0.02525569]
[1732235126554,2.98635,3348.6,3348.0,3.01131571]
[1732235126846,2.98676,3348.1,3348.0,0.2979]
[1732235127020,2.98697,3347.9,3347.3,0.32317172]
[1732235127224,2.98697,3347.9,3347.5,0.2979]
[1732235127557,2.98686,3348.0,3347.5,0.2979]
[1732235128114,2.98669,3348.2,3347.5,0.2979]
[1732235128320,3.77851,3348.3,3347.4,3.01179112]
[1732235128638,2.98684,3348.1,3347.6,0.2979]
[1732235129453,0.7919,3348.6,3347.3,0.2979]
[1732235129454,2.98698,3347.9,3347.3,0.2979]
[1732235129663,2.9872,3347.7,3347.3,0.2979]
[1732235129863,2.98723,3347.6,3347.3,0.2979]
[1732235130164,2.98703,3347.8,3347.3,0.2979]
[1732235130363,2.98703,3347.8,3347.3,0.865473]
[1732235130564,2.98716,3347.7,3347.3,0.865473]
[1732235131364,2.98732,3347.5,3347.1,0.2979]
[1732235131666,2.98716,3347.7,3347.1,2.98678]
[1732235131822,2.98696,3347.9,3347.1,0.2979]
[1732235131823,2.98748,3347.4,3347.1,0.2979]
[1732235132029,2.98757,3347.2,3347.1,0.2979]
[1732235132254,2.98757,3347.2,3346.7,0.2979]
[1732235132624,3.02437443,3347.8,3346.7,0.2979]
[1732235132958,2.98786,3346.9,3346.7,0.2979]
[1732235133165,2.98792,3346.8,3346.7,0.2979]
[1732235133747,2.98801,3346.7,3346.6,0.1498895]
[1732235133917,2.98791,3346.9,3346.6,0.1498895]
[1732235134262,2.98739,3347.4,3346.6,0.1498895]
[1732235134263,2.9874,3347.4,3346.6,0.1498895]
[1732235134565,6.48922072,3346.7,3346.6,0.1498895]
[1732235135059,3.77991,3346.7,3346.6,0.1498895]
[1732235135272,0.7919,3345.8,3344.0,0.01]
[1732235135564,2.98902,3345.6,3344.2,2.69122]
[1732235135758,2.98873,3345.9,3344.5,0.2979]
[1732235135963,2.98908,3345.5,3344.7,2.69077]
[1732235136261,2.98892,3345.7,3344.9,0.2979]
[1732235136637,0.7919,3346.5,3345.0,0.2979]
[1732235136846,2.98853,3346.2,3345.1,0.02531577]
[1732235137048,0.7919,3347.6,3345.4,2.69026]
[1732235137258,3.4027266,3347.8,3345.9,2.68984]
[1732235137259,2.98802,3346.7,3345.9,2.68984]
[1732235137459,2.98802,3346.7,3345.9,2.71514409]
[1732235137666,2.98784,3346.9,3345.9,2.71515409]
[1732235137968,2.98785,3346.9,3346.1,2.68964]
[1732235138149,2.98785,3346.9,3346.0,2.68975]
[1732235138348,2.98785,3346.9,3346.0,5.37947]
[1732235138569,0.7919,3347.3,3346.1,0.02530412]
[1732235138740,2.98683,3348.1,3346.7,2.68919]
[1732235138741,2.98719,3347.7,3346.7,2.68919]
[1732235138939,2.98723,3347.6,3346.8,2.98332262]
[1732235139274,0.7919,3348.0,3346.5,2.98726]
[1732235139275,2.9875,3347.3,3346.5,2.98726]
[1732235139569,0.30248408,3347.3,3346.8,2.68912]
[1732235139777,0.03734231,3347.6,3346.5,2.98726]
[1732235139962,2.98746,3347.4,3346.6,3.285896]
[1732235140131,2.98746,3347.4,3346.6,2.98717]
[1732235140337,0.03734334,3347.9,3346.6,2.98717]
[1732235140338,2.98722,3347.6,3346.8,2.68912]
[1732235140577,2.98739,3347.4,3346.7,0.30124606]
[1732235140733,2.98722,3347.6,3346.6,0.2979]
[1732235140935,2.98731,3347.5,3346.8,2.68907]
[1732235141177,2.98731,3347.5,3346.8,3.256695]
[1732235141364,3.02446311,3347.7,3347.0,2.68889]